{"text_format":"3","workbook":"xlsx","n_sheets":1,"sheets":["Sheet1"],"not_rendered":{"defined_names":2},"read":"whole","date_system":"1900"}

{"sheet":"Sheet1","index":0,"n_rows":139,"n_cols":65,"rows_kept":139,"merged":[[0,2,0,19],[0,24,0,41],[0,58,1,58],[2,58,3,58],[3,2,3,19],[3,24,3,41],[4,2,4,20],[4,24,4,41],[4,58,5,58],[5,2,5,19],[5,24,5,41],[7,3,7,8],[7,11,7,12],[7,13,7,14],[7,15,7,16],[7,25,7,30],[7,33,7,36],[7,38,7,39],[13,2,13,19],[13,24,13,41],[16,6,16,19],[16,28,16,41],[17,6,17,19],[17,28,17,41],[18,5,18,16],[18,17,18,19],[18,27,18,38],[18,39,18,41],[19,2,19,14],[19,24,19,36],[20,10,20,14],[20,15,21,15],[20,16,20,19],[20,32,20,36],[20,37,21,37],[20,38,20,41],[22,2,22,9],[22,24,22,31],[24,10,24,18],[24,32,24,40],[25,10,25,18],[25,32,25,40],[26,2,26,6],[26,13,26,18],[26,24,26,28],[26,36,26,41],[27,2,27,6],[27,13,27,18],[27,24,27,28],[27,36,27,41],[28,14,28,18],[28,37,28,41],[29,4,29,5],[29,14,29,18],[29,26,29,27],[29,29,29,34],[29,36,29,40],[30,14,30,18],[30,36,30,40],[31,4,31,5],[31,8,31,11],[31,14,31,18],[31,26,31,27],[31,30,31,33],[31,36,31,40],[32,8,32,11],[32,14,32,18],[32,30,32,33],[32,36,32,40],[33,4,33,5],[33,7,33,12],[33,13,33,19],[33,26,33,27],[33,29,33,34],[33,35,33,41],[34,8,34,11],[34,14,34,18],[34,30,34,33],[34,36,34,40],[35,8,35,11],[35,14,35,18],[35,30,35,33],[35,36,35,40],[36,2,36,9],[36,11,36,19],[36,24,36,31],[36,33,36,41],[37,4,37,8],[37,9,37,10],[37,11,37,14],[37,15,37,16],[37,26,37,30],[37,31,37,32],[37,33,37,36],[37,37,37,38],[39,6,39,15],[39,16,39,17],[39,28,39,37],[39,38,39,39],[43,29,43,40],[44,2,44,5],[44,6,44,13],[44,24,44,27],[44,29,44,36],[45,6,45,9],[45,11,45,14],[45,16,45,18],[45,28,45,31],[45,33,45,36],[45,38,45,40],[46,11,46,14],[46,16,46,18],[46,33,46,36],[46,38,46,40],[48,6,48,9],[48,11,48,14],[48,16,48,18],[48,28,48,31],[48,33,48,36],[48,38,48,40],[49,11,49,14],[49,16,49,18],[49,33,49,36],[49,38,49,40],[50,2,50,9],[50,11,50,19],[50,24,50,31],[50,33,50,41],[52,2,52,19],[52,24,52,41],[54,7,54,10],[54,16,54,18],[54,29,54,32],[54,38,54,40],[55,7,55,10],[55,16,55,18],[55,29,55,32],[55,38,55,40],[58,10,58,12],[59,3,59,8],[59,25,59,30],[60,3,60,8],[60,13,60,18],[60,25,60,30],[60,35,60,40]]}
[null,null,"FORMULARIOS PARA TRANSFERENCIAS INTERLIGAS",{"$nulls":21},"FORMULARIOS PARA TRANSFERENCIAS INTERLIGAS",{"$nulls":17}," ","POR DUPLICADO",{"$f":"(TODAY()-AA30)/365","v":{"v":121.23835616438356,"d":"121"}},{"$nulls":8},"Enero",1,2019,"D.N.I."," ACADEMIA JAVIER MASCHERANO","con","DEFINITIVO (1)","[SI]","Padre","LIGA DEPORTIVA DEL OESTE (JUNÍN)","***JUNIN***"]
[{"$nulls":3},"Solicitud del Jugador a la Liga (001/1)",{"$nulls":21},"Solicitud del Jugador a la Liga (001/1)",{"$nulls":16}," ","Si es \"A PRUEBA\" debe acompañarse",{"$nulls":9},"Febrero",2,2020,"C.I."," ATL. SOC. Y DEP. DE LINCOLN JUVENTUD UNIDA",null,"A PRUEBA","[NO]","Madre","LIGA DEPORTIVA CENTRAL VEDIA","ATLETICO AMBOS MUNDOS","LIGA DEPORTIVA DEL OESTE (JUNÍN)"]
[{"$nulls":42}," ","el formulario 003 por quintuplicado",{"$nulls":9},"Marzo",3,2021,"D.N.I./C.I."," ATLÉTICO ARGENTINO","sin","DEFINITIVO (1)/ A PRUEBA","[SI] [NO]","Tutor","LIGA DE FÚTBOL DE GENERAL VILLEGAS","ATLETICO BUENOS AIRES AL PACÍFICO","LIGA DEPORTIVA DEL OESTE (JUNÍN)"]
[null,null,"Liga Amateur de Deportes de Lincoln",{"$nulls":21},"Liga Amateur de Deportes de Lincoln",{"$nulls":17}," ","Si es con Carta Liberatoria debe acompañarse el original de la misma",{"$nulls":9},"Abril",4,2022,null," ATLÉTICO BAYAUCA",null,"DEFINITIVO (1) ////////////",null,"Padre - Madre","LIGA DE FÚTBOL DEL OESTE (AMÉRICA/RIVADAVIA)","ATLETICO DEFENSA ARGENTINA","LIGA DEPORTIVA DEL OESTE (JUNÍN)"]
[null,null,{"$f":"Y5","v":"Afiliada a la A.F.A.  -  Desp. Nº 10.170  - Estrada 1.230 - Lincoln - 6070 "},{"$nulls":21},"Afiliada a la A.F.A.  -  Desp. Nº 10.170  - Estrada 1.230 - Lincoln - 6070 ",{"$nulls":17}," ","TAMAÑO DE HOJA LEGAL",{"$nulls":9},"Mayo",5,2023,null," ATLÉTICO EL LINQUEÑO","con sin","////////////////A PRUEBA",null,"Padre - Tutor","LIGA TOLDENSE DE FÚTBOL","ATLETICO INDEPENDIENTE ","LIGA DEPORTIVA DEL OESTE (JUNÍN)"]
[null,null,{"$f":"Y6","v":"Teléfono fijo 02355 421081 Mail: ligalincoln@gmail.com"},{"$nulls":21},"Teléfono fijo 02355 421081 Mail: ligalincoln@gmail.com",{"$nulls":17}," ",{"$nulls":10},"Junio",6,2024,null," ATLÉTICO INDEPENDIENTE",{"$nulls":3},"Madre - Tutor","LIGA DEPORTIVA DE GENERAL ARENALES","ATLETICO MARIANO MORENO","LIGA DEPORTIVA DEL OESTE (JUNÍN)"]
[{"$nulls":42}," ",{"$nulls":10},"Julio",7,null,null," ATLÉTICO LAS TOSCAS",{"$nulls":3},"Padre - Madre - Tutor","LIGA DEPORTIVA DE FÚTBOL (ROJAS)","ATLETICO RIVADAVIA","LIGA DEPORTIVA DEL OESTE (JUNÍN)"]
[{"$nulls":3},"Lincoln (Pcia de Buenos Aires),",{"$nulls":5},{"$f":"IF(AF8=\"\",\"\",AF8)","v":""},"de",{"$f":"PROPER(AH8)","v":""},null,"de",null,{"$f":"IF(AM8=\"\",\"\",AM8)","v":""},{"$nulls":9},"Lincoln (Pcia de Buenos Aires),",{"$nulls":6},"de",{"$nulls":4},"de",{"$nulls":4}," ",{"$nulls":10},"Agosto",8,null,null," ATLÉTICO PASTEUR Y FERROCARRIL OESTE",{"$nulls":4},"LIGA CASARENSE DE FÚTBOL","ATLETICO RIVER PLATE","LIGA DEPORTIVA DEL OESTE (JUNÍN)"]
[{"$nulls":42}," ",{"$nulls":10},"Septiembre",9,null,null," ATLÉTICO PINTENSE",{"$nulls":4},"LIGA DEPORTIVA DE SALTO","ATLETICO SARMIENTO","LIGA DEPORTIVA DEL OESTE (JUNÍN)"]
[null,null,"Señor",{"$nulls":21},"Señor",{"$nulls":17}," ",{"$nulls":10},"Octubre",10,null,null," ATLÉTICO ROBERTS",{"$nulls":4},"LIGA BRAGADENSE DE FÚTBOL","ATLETICO VILLA BELGRANO","LIGA DEPORTIVA DEL OESTE (JUNÍN)"]
[null,null,"Presidente de la",{"$nulls":21},"Presidente de la",{"$nulls":17}," ",{"$nulls":10},"Noviembre",11,null,null," ATLÉTICO Y SOCIAL EL TRIUNFO",{"$nulls":4},"LIGA CHIVILCOYANA DE FÚTBOL","JORGE NEWBERY","LIGA DEPORTIVA DEL OESTE (JUNÍN)"]
[null,null,"LIGA AMATEUR DE DEPORTES DE LINCOLN",{"$nulls":21},"LIGA AMATEUR DE DEPORTES DE LINCOLN",{"$nulls":17}," ",{"$nulls":10},"Diciembre",12,null,null," ATLÉTICO Y SOCIAL SAN MARTIN",{"$nulls":4},"LIGA DEPORTIVA DE CHACABUCO","ORIGONE FOOT BALL CLUB","LIGA DEPORTIVA DEL OESTE (JUNÍN)"]
[{"$nulls":42}," ",{"$nulls":11},13,null,null," DEPORTIVO SOCIAL DE LINCOLN SAN MIGUEL",{"$nulls":4},"LIGA DEPORTIVA DE COLÓN","RIVADAVIA","LIGA DEPORTIVA DEL OESTE (JUNÍN)"]
[null," ","SOLICITUD DE TRANSFERENCIA",{"$nulls":20}," ","SOLICITUD DE TRANSFERENCIA",{"$nulls":17}," ",{"$nulls":11},14,null,null," DEPORTIVO Y SOCIAL ARENAZA",{"$nulls":4},"LIGA MERCEDINA DE FÚTBOL","SOCIAL, CULTURAL Y DEPORTIVO BAIGORRITA","LIGA DEPORTIVA DEL OESTE (JUNÍN)"]
[null," ",{"$nulls":21}," ",{"$nulls":18}," ",{"$nulls":11},15,null,null," SOCIAL Y DEPORTIVO GENERAL PINTO",{"$nulls":4},"LIGA NUEVEJULIENSE DE FÚTBOL"]
[null," ",{"$nulls":21}," ",{"$nulls":18}," ",{"$nulls":11},16,null,null," SOCIAL Y DEPORTIVO VILLA FRANCIA",{"$nulls":4},"LIGA PEHUAJENSE DE FÚTBOL","***VEDIA***"]
[{"$f":"REPT(\"-\",70)","v":"----------------------------------------------------------------------"}," ",{"$nulls":3},"El que suscribe",{"$f":"IF(AC17=\"\",\"FALTA INDICAR NOMBRE DEL JUGADOR\",CONCATENATE(A17,V17,W17))","v":"FALTA INDICAR NOMBRE DEL JUGADOR"},{"$nulls":14},{"$f":"UPPER(AC17)","v":""},{"$f":"REPT(\"-\",70)","v":"----------------------------------------------------------------------"}," ",{"$nulls":3},"El que suscribe",{"$nulls":14}," ",{"$nulls":11},17,{"$nulls":7},"LIGA TRENQUELAUQUENSE DE FÚTBOL","ANCALU SPORT CLUB","LIGA DEPORTIVA CENTRAL VEDIA"]
[null," ",{"$nulls":4},"(Nombres y Apellidos completos del jugador)",{"$nulls":16}," ",{"$nulls":4},"(Nombres y Apellidos completos del jugador)",{"$nulls":13}," ",{"$nulls":11},18,{"$nulls":7},"LIGA VEINTICINQUEÑA DE FÚTBOL","CLUB ATLETICO VEDIA ALUMNI","LIGA DEPORTIVA CENTRAL VEDIA"]
[{"$f":"REPT(\"-\",70)","v":"----------------------------------------------------------------------"}," ","Inscripto en el Club",null,null,{"$f":"IF(AB19=\"\",\"FALTA INDICAR NOMBRE DEL CLUB\",CONCATENATE(A19,V19,W19))","v":"FALTA INDICAR NOMBRE DEL CLUB"},{"$nulls":11},",de la A.F.A./Liga",{"$nulls":3},{"$f":"UPPER(AB19)","v":""},{"$f":"REPT(\"-\",70)","v":"----------------------------------------------------------------------"}," ","Inscripto en el Club",{"$nulls":14},",de la A.F.A./Liga",null,null," ",{"$nulls":11},19,{"$nulls":8},"DEFENSORES DE CHRISTOPHERSEN","LIGA DEPORTIVA CENTRAL VEDIA"]
[{"$f":"REPT(\"-\",70)","v":"----------------------------------------------------------------------"}," ",{"$f":"IF(Y20=\"\",\"FALTA INDICAR NOMBRE DE LA LIGA\",CONCATENATE(A20,V20,W20))","v":"FALTA INDICAR NOMBRE DE LA LIGA"},{"$nulls":16},",cuyos datos de identidad se",null,{"$f":"UPPER(Y20)","v":""},{"$f":"REPT(\"-\",70)","v":"----------------------------------------------------------------------"}," ",{"$nulls":17},",cuyos datos de identidad se"," ",{"$nulls":11},20,{"$nulls":8},"DEPORTIVO SARMIENTO","LIGA DEPORTIVA CENTRAL VEDIA"]
[null," ","consignan más abajo, solicita se tramite su pase",{"$nulls":7},{"$f":"IF(AG21=\"\",\"\",IF(AG21=\"DEFINITIVO (1)\",BH4,IF(AG21=\"A PRUEBA\",BH5,AG21)))","v":"DEFINITIVO (1)/ A PRUEBA"},{"$nulls":4},{"$f":"AL21","v":"con sin"},"OPCION para el Club:",{"$nulls":6}," ","consignan más abajo, solicita se tramite su pase",{"$nulls":7},"DEFINITIVO (1)/ A PRUEBA",{"$nulls":4},"con sin","OPCION para el Club:",{"$nulls":3}," ",{"$nulls":11},21,{"$nulls":8},"DEPORTIVO Y RECREATIVO LEANDRO N. ALEM","LIGA DEPORTIVA CENTRAL VEDIA"]
[null," ",{"$nulls":21}," ",{"$nulls":18}," ",{"$nulls":11},22,{"$nulls":8},"FOOT BALL CLUB MATIENZO","LIGA DEPORTIVA CENTRAL VEDIA"]
[{"$f":"REPT(\"-\",70)","v":"----------------------------------------------------------------------"}," ",{"$f":"IF(Y23=\"\",\"FALTA INDICAR NOMBRE DEL CLUB\",CONCATENATE(A23,V23,W23))","v":"FALTA INDICAR NOMBRE DEL CLUB"},{"$nulls":7},"de esa Liga.",{"$nulls":10},{"$f":"UPPER(Y23)","v":""},{"$f":"REPT(\"-\",70)","v":"----------------------------------------------------------------------"}," ",{"$nulls":8},"de esa Liga.",{"$nulls":9}," ",{"$nulls":11},23,{"$nulls":8},"HURACAN FOOT BALL CLUB","LIGA DEPORTIVA CENTRAL VEDIA"]
[null," ",{"$nulls":8},"Saluda a Usted atentamente.",{"$nulls":12}," ",{"$nulls":8},"Saluda a Usted atentamente.",{"$nulls":9}," ",{"$nulls":11},24,{"$nulls":8},"SOCIAL Y DEPORTIVO ALBERDI","LIGA DEPORTIVA CENTRAL VEDIA"]
[null," ",{"$nulls":8},{"$f":"IF(C23=\"\",\"\",IF(OR(K21=\"\",K21=BH3),\"DEBE INDICAR SI ES DEFINITIVO O A PRUEBA\",\"\"))","v":"DEBE INDICAR SI ES DEFINITIVO O A PRUEBA"},{"$nulls":12}," ",{"$nulls":8},{"$f":"IF(Y23=\"\",\"\",IF(OR(AG21=\"\",AG21=BH3),\"DEBE INDICAR SI ES DEFINITIVO O A PRUEBA\",\"\"))","v":""},{"$nulls":9}," ",{"$nulls":11},25,{"$nulls":8},"SOCIAL Y DEPORTIVO ATLANTA","LIGA DEPORTIVA CENTRAL VEDIA"]
[null," ",{"$nulls":8},{"$f":"IF(C23=\"\",\"\",IF(OR(P21=\"\",P21=BG5),\"DEBE INDICAR SI ES CON O SIN OPCION\",\"\"))","v":"DEBE INDICAR SI ES CON O SIN OPCION"},{"$nulls":12}," ",{"$nulls":8},{"$f":"IF(Y23=\"\",\"\",IF(OR(AL21=\"\",AL21=BG5),\"DEBE INDICAR SI ES CON O SIN OPCION\",\"\"))","v":""},{"$nulls":9}," ",{"$nulls":11},26,{"$nulls":8},"SOCIAL Y DEPORTIVO BLAQUIER","LIGA DEPORTIVA CENTRAL VEDIA"]
[null," ","Datos de Identidad",{"$nulls":10},"(Firma del jugador)",{"$nulls":9}," ","Datos de Identidad",{"$nulls":11},"(Firma del jugador)",{"$nulls":5}," ",{"$nulls":11},27,{"$nulls":8},"SOCIAL Y DEPORTIVO MARTIN D. YRIGOYEN","LIGA DEPORTIVA CENTRAL VEDIA"]
[null," ","del Jugador:",{"$nulls":6},"(Sello del Club)",{"$nulls":3},"Declaramos que la firma",{"$nulls":9}," ","del Jugador:",{"$nulls":6},"(Sello del Club)",{"$nulls":4},"Declaramos que la firma",{"$nulls":5}," ",{"$nulls":11},28,{"$nulls":8},"SOCIAL Y DEPORTIVO RIVER PLATE","LIGA DEPORTIVA CENTRAL VEDIA"]
[null," ",{"$nulls":12},"del jugador es auténtica",{"$nulls":8}," ",{"$nulls":13},"del jugador es auténtica",{"$nulls":4}," ",{"$nulls":11},29,{"$nulls":8},"SOCIAL Y DEPORTIVO SARMIENTO","LIGA DEPORTIVA CENTRAL VEDIA"]
[null," ",null,"Nacido el",{"$f":"IF(AA30=\"\",\"\",AA30)","v":""},{"$nulls":18}," ",null,"Nacido el",{"$nulls":3},{"$f":"IF(Y23=\"\",\"\",IF(AND(AA32=\"\",AA34=\"\"),\"FALTA DOC DEL JUGADOR\",\"\"))","v":""},{"$nulls":12}," ",{"$nulls":11},30,{"$nulls":8},"SOCIAL Y DEPORTIVO UNION","LIGA DEPORTIVA CENTRAL VEDIA"]
[null," ",{"$nulls":21}," ",{"$nulls":18}," ",{"$nulls":11},31]
[null," ",null,"D.N.I.",{"$f":"IF(AND(AA32=\"\",AA34=\"\"),\"FALTA DOC\",IF(AA32=\"\",\"\",AA32))","v":"FALTA DOC"},{"$nulls":18}," ",null,"D.N.I.",{"$nulls":16}," ",{"$nulls":20},"***VILLEGAS***"]
[null," ",{"$nulls":6},"Secretario Club",{"$nulls":5},"Presidente Club",{"$nulls":8}," ",{"$nulls":6},"Secretario Club",{"$nulls":5},"Presidente Club",{"$nulls":5}," ",{"$nulls":20},"ATLETICO AMEGHINO","LIGA DE FÚTBOL DE GENERAL VILLEGAS"]
[null," ",null,"C.I.",{"$f":"IF(AND(AA32=\"\",AA34=\"\"),\"FALTA DOC\",IF(AA34=\"\",\"\",AA34))","v":"FALTA DOC"},null,null,{"$f":"IF(AD34=\"\",\"\",AD34)","v":""},{"$nulls":5},{"$f":"IF(AJ34=\"\",\"\",AJ34)","v":""},{"$nulls":9}," ",null,"C.I.",{"$nulls":3},{"$f":"IF(Y23=\"\",\"\",Y23)","v":""},{"$nulls":5},{"$f":"IF(Y23=\"\",\"\",Y23)","v":""},{"$nulls":6}," ",{"$nulls":20},"ATLETICO CHARLONE","LIGA DE FÚTBOL DE GENERAL VILLEGAS"]
[null," ",{"$nulls":21}," ",{"$nulls":18}," ",{"$nulls":20},"ATLETICO JUVENTUD UNIDA","LIGA DE FÚTBOL DE GENERAL VILLEGAS"]
[null," ",{"$nulls":6},"Aclaración",{"$nulls":5},"Aclaración",{"$nulls":8}," ",{"$nulls":6},"Aclaración",{"$nulls":5},"Aclaración",{"$nulls":5}," ",{"$nulls":20},"ATLETICO SOCIAL CAÑADIENSE","LIGA DE FÚTBOL DE GENERAL VILLEGAS"]
[null," ",{"$f":"IF(C23=\"\",\"\",IF(OR(AF38=\"\",AF38=BI3),\"DEBE INDICAR SI ADJUNTA LIBERTAD DE ACCION\",\"\"))","v":"DEBE INDICAR SI ADJUNTA LIBERTAD DE ACCION"},{"$nulls":8},{"$f":"IF(C23=\"\",\"\",IF(OR(AL38=\"\",AL38=BI3),\"DEBE INDICAR SI ADJUNTA CONVENIO A PRUEBA\",\"\"))","v":"DEBE INDICAR SI ADJUNTA CONVENIO A PRUEBA"},{"$nulls":11}," ",{"$f":"IF(Y23=\"\",\"\",IF(OR(AF38=\"\",AF38=BI3),\"DEBE INDICAR SI ADJUNTA LIBERTAD DE ACCION\",\"\"))","v":""},{"$nulls":8},{"$f":"IF(Y23=\"\",\"\",IF(OR(AL38=\"\",AL38=BI3),\"DEBE INDICAR SI ADJUNTA CONVENIO A PRUEBA\",\"\"))","v":""},{"$nulls":8}," ",{"$nulls":20},"ATLETICO VILLEGAS","LIGA DE FÚTBOL DE GENERAL VILLEGAS"]
[{"$f":"REPT(\"-\",70)","v":"----------------------------------------------------------------------"}," ",null,null,"Adjunto: Libertad Acción",{"$nulls":4},{"$f":"CONCATENATE(A38,AF38,W38)","v":"----------------------------------------------------------------------[SI] [NO]----------------------------------------------------------------------"},null,"Convenio a prueba ",{"$nulls":3},{"$f":"CONCATENATE(A38,AL38,W38)","v":"----------------------------------------------------------------------[SI] [NO]----------------------------------------------------------------------"},{"$nulls":6},{"$f":"REPT(\"-\",70)","v":"----------------------------------------------------------------------"}," ",null,null,"Adjunto: Libertad Acción",{"$nulls":4},"[SI] [NO]",null,"Convenio a prueba ",{"$nulls":3},"[SI] [NO]",{"$nulls":4}," ",{"$nulls":20},"ATLETICO Y SOCIAL CAÑADA SECA","LIGA DE FÚTBOL DE GENERAL VILLEGAS"]
[null," ",{"$nulls":21}," ",{"$nulls":18}," ",{"$nulls":20},"CENTRO EMPLEADOS DE COMERCIO","LIGA DE FÚTBOL DE GENERAL VILLEGAS"]
[null," ",{"$nulls":4},"Nota:  (1)  Si es por art. 20º del R.T.I., indicar el inciso",{"$nulls":9},"…………………..",{"$nulls":6}," ",{"$nulls":4},"Nota:  (1)  Si es por art. 20º del R.T.I., indicar el inciso",{"$nulls":9},"…………………",{"$nulls":3}," ",{"$nulls":20},"CIRCULO ITALIANO DEPORTIVO Y RECREATIVO","LIGA DE FÚTBOL DE GENERAL VILLEGAS"]
[null," ",{"$nulls":21}," ",{"$nulls":18}," ",{"$nulls":20},"DEPORTIVO Y SOCIAL INGENIERO WHITE","LIGA DE FÚTBOL DE GENERAL VILLEGAS"]
[null," ","Para el caso de jugadores menores de edad:",{"$nulls":20}," ","Para el caso de jugadores menores de edad:",{"$nulls":38},"ECLIPSE","LIGA DE FÚTBOL DE GENERAL VILLEGAS"]
[{"$nulls":23}," ",{"$nulls":18}," ",{"$nulls":20},"FÚTBOL CLUB BUNGE","LIGA DE FÚTBOL DE GENERAL VILLEGAS"]
[null,null,"Autorización del:",{"$nulls":20}," ","Autorización del:",{"$nulls":4},{"$f":"IF(AS1>17,\"\",IF(OR(Y45=\"\",Y45=BJ7),\"El jugador es menor de edad, requiere autorización de un mayor\",\"\"))","v":""},{"$nulls":12}," ",{"$nulls":20},"LARROUDE FÚTBOL CLUB","LIGA DE FÚTBOL DE GENERAL VILLEGAS"]
[null,null,{"$f":"IF(Y45=\"\",\"\",Y45)","v":"Padre - Madre - Tutor"},{"$nulls":3},{"$f":"IF(AS1>17,\"\",IF(OR(Y45=\"\",Y45=BJ7),\"DEBE INDICAR PARENTESCO DEL JUGADOR\",\"\"))","v":""},{"$nulls":16}," ","Padre - Madre - Tutor",{"$nulls":4},{"$f":"IF(AS1>17,\"\",IF(OR(Y45=\"\",Y45=BJ7),\"DEBE INDICAR PARENTESCO DEL JUGADOR\",\"\"))","v":""},{"$nulls":12}," ",{"$nulls":20},"SOCIAL COSMOPOLITA RECREATIVA Y SPORTIVA","LIGA DE FÚTBOL DE GENERAL VILLEGAS"]
[null,null,"Documento",null,{"$f":"UPPER(AA46)","v":"D.N.I./C.I."},"Nº",{"$f":"IF(AC46=\"\",\"\",AC46)","v":""},{"$nulls":4},{"$f":"PROPER(AH46)","v":""},{"$nulls":11}," ","Documento",null,"D.N.I./C.I.","Nº",{"$nulls":14}," ",{"$nulls":20},"SOCIAL Y DEPORTIVO SARMIENTO","LIGA DE FÚTBOL DE GENERAL VILLEGAS"]
[{"$nulls":4},"Tipo",{"$nulls":6},"(Aclaración)",{"$nulls":4},"(Firma)",{"$nulls":6}," ",null,null,"Tipo",{"$nulls":6},"(Aclaración)",{"$nulls":4},"(Firma)",{"$nulls":3}," ",{"$nulls":20},"SOCIAL, CULTURAL Y DEPORTIVO SANTA RITA","LIGA DE FÚTBOL DE GENERAL VILLEGAS"]
[{"$nulls":23}," ",{"$nulls":18}," ",{"$nulls":20},"SPORTIVO VILLEGAS","LIGA DE FÚTBOL DE GENERAL VILLEGAS"]
[null,null,"Documento",null,{"$f":"UPPER(AA49)","v":"D.N.I./C.I."},"Nº",{"$f":"IF(AC49=\"\",\"\",AC49)","v":""},{"$nulls":4},{"$f":"PROPER(AH49)","v":""},{"$nulls":11}," ","Documento",null,"D.N.I./C.I.","Nº",{"$nulls":14}," ",{"$nulls":20},"VILLA REGINA","LIGA DE FÚTBOL DE GENERAL VILLEGAS"]
[{"$nulls":4},"Tipo",{"$nulls":6},"(Aclaración)",{"$nulls":4},"(Firma)",{"$nulls":6}," ",null,null,"Tipo",{"$nulls":6},"(Aclaración)",{"$nulls":4},"(Firma)",{"$nulls":3}," "]
[null,null,{"$f":"IF(AS1>17,\"\",IF(AC46=\"\",\"DEBE INDICAR NUMERO DE DOCUMENTO\",\"\"))","v":""},{"$nulls":8},{"$f":"IF(AS1>17,\"\",IF(OR(AC49=\"\",AC49=BJ4,AC49=BJ5,AC49=BJ6),\"DEBE INDICAR NUMERO DOCUMENTO 2\",\"\"))","v":""},{"$nulls":11}," ",{"$f":"IF(AS1>17,\"\",IF(AC46=\"\",\"DEBE INDICAR NUMERO DE DOCUMENTO\",\"\"))","v":""},{"$nulls":8},{"$f":"IF(AS1>17,\"\",IF(OR(Y45=\"\",Y45=BJ4,Y45=BJ5,Y45=BJ6),\"DEBE INDICAR NUMERO DOCUMENTO 2\",\"\"))","v":""},{"$nulls":8}," ",{"$nulls":20},"***AMERICA***"]
[{"$nulls":23}," ",{"$nulls":39},"ARGENTINO","LIGA DE FÚTBOL DEL OESTE (AMÉRICA/RIVADAVIA)"]
[null,null,"CONSTANCIA PARA EL JUGADOR",{"$nulls":21},"CONSTANCIA PARA EL JUGADOR",{"$nulls":17}," ",{"$nulls":20},"ATLETICO AMIGOS DE GORRA DE CUERO","LIGA DE FÚTBOL DEL OESTE (AMÉRICA/RIVADAVIA)"]
[{"$nulls":42}," ",{"$nulls":20},"ATLETICO BARRIO NORTE","LIGA DE FÚTBOL DEL OESTE (AMÉRICA/RIVADAVIA)"]
[{"$nulls":6},"Ingresado en la Liga:",{"$nulls":21},"Ingresado en la Liga:",{"$nulls":13}," ",{"$nulls":20},"ATLETICO RIVADAVIA","LIGA DE FÚTBOL DEL OESTE (AMÉRICA/RIVADAVIA)"]
[{"$nulls":7},"(Fecha)",{"$nulls":8},"(Hora)",{"$nulls":12},"(Fecha)",{"$nulls":8},"(Hora)",{"$nulls":3}," ",{"$nulls":20},"DEPORTIVO Y SOCIAL LOS ONCE","LIGA DE FÚTBOL DEL OESTE (AMÉRICA/RIVADAVIA)"]
[{"$nulls":42}," ",{"$nulls":20},"ESCUELA DE FÚTBOL PATITA SANCHEZ","LIGA DE FÚTBOL DEL OESTE (AMÉRICA/RIVADAVIA)"]
[{"$nulls":42}," ",{"$nulls":20},"FÚTBOL CLUB TRES ALGARROBOS","LIGA DE FÚTBOL DEL OESTE (AMÉRICA/RIVADAVIA)"]
[{"$nulls":10},"(Sello de Liga)",{"$nulls":21},"(Sello de Liga)",{"$nulls":9}," ",{"$nulls":20},"INDEPENDIENTE FOOT BALL CLUB","LIGA DE FÚTBOL DEL OESTE (AMÉRICA/RIVADAVIA)"]
[{"$nulls":42}," ",{"$nulls":20},"RACING FOOT BALL CLUB","LIGA DE FÚTBOL DEL OESTE (AMÉRICA/RIVADAVIA)"]
[{"$nulls":3},"(Firma por la Liga)",{"$nulls":9},"(Aclaración de la Firma)",{"$nulls":11},"(Firma por la Liga)",{"$nulls":9},"(Aclaración de la Firma)",{"$nulls":6}," ",{"$nulls":20},"ROOSEVELT","LIGA DE FÚTBOL DEL OESTE (AMÉRICA/RIVADAVIA)"]
[{"$nulls":63},"SANSINENA FÚTBOL CLUB","LIGA DE FÚTBOL DEL OESTE (AMÉRICA/RIVADAVIA)"]
[{"$nulls":63},"SOCIAL Y ATLETICO JORGE NEWBERY","LIGA DE FÚTBOL DEL OESTE (AMÉRICA/RIVADAVIA)"]
[{"$nulls":63},"SOCIAL Y DEPORTIVO GONZALEZ MORENO","LIGA DE FÚTBOL DEL OESTE (AMÉRICA/RIVADAVIA)"]
[{"$nulls":63},"SOCIAL Y DEPORTIVO INDEPENDIENTE FÚTBOL CLUB","LIGA DE FÚTBOL DEL OESTE (AMÉRICA/RIVADAVIA)"]
[{"$nulls":63},"SOCIAL Y DEPORTIVO TRES ALGARROBOS","LIGA DE FÚTBOL DEL OESTE (AMÉRICA/RIVADAVIA)"]
[]
[{"$nulls":63},"***LOS TOLDOS***"]
[{"$nulls":63},"ATLETICO BELGRANO","LIGA TOLDENSE DE FÚTBOL"]
[{"$nulls":63},"ATLETICO DEFENSORES DE BELGRANO","LIGA TOLDENSE DE FÚTBOL"]
[{"$nulls":63},"ATLETICO IGNACIO COLIQUEO","LIGA TOLDENSE DE FÚTBOL"]
[{"$nulls":63},"ATLETICO JUAN EL BUENO","LIGA TOLDENSE DE FÚTBOL"]
[{"$nulls":63},"ATLETICO LA DELFINA","LIGA TOLDENSE DE FÚTBOL"]
[{"$nulls":63},"ATLETICO RIVER PLATE","LIGA TOLDENSE DE FÚTBOL"]
[{"$nulls":63},"CENTRO DE EDUCACIÓN FISICA Nº 94","LIGA TOLDENSE DE FÚTBOL"]
[{"$nulls":63},"JUVENTUD ALSINA","LIGA TOLDENSE DE FÚTBOL"]
[{"$nulls":63},"SPORTIVO ZAVALÍA","LIGA TOLDENSE DE FÚTBOL"]
[{"$nulls":63},"VIAMONTE FÚTBOL CLUB","LIGA TOLDENSE DE FÚTBOL"]
[]
[{"$nulls":63},"***ARENALES***"]
[{"$nulls":63},"AGUSTINA FÚTBOL CLUB","LIGA DEPORTIVA DE GENERAL ARENALES"]
[{"$nulls":63},"ARENALES FOOT BALL CLUB","LIGA DEPORTIVA DE GENERAL ARENALES"]
[{"$nulls":63},"ASOC. CULTURAL Y DEP. HURACAN FOOT BAAL CLUB ","LIGA DEPORTIVA DE GENERAL ARENALES"]
[{"$nulls":63},"ATLETICO FORTIN TIBURCIO","LIGA DEPORTIVA DE GENERAL ARENALES"]
[{"$nulls":63},"ATLETICO ONCE ESTRELLAS","LIGA DEPORTIVA DE GENERAL ARENALES"]
[{"$nulls":63},"COLONIAL FERRÉ","LIGA DEPORTIVA DE GENERAL ARENALES"]
[{"$nulls":63},"ESCUELA AGROTÉCNICA SALESIANA LA TRINIDAD","LIGA DEPORTIVA DE GENERAL ARENALES"]
[{"$nulls":63},"LA PINTA FOOT BALL CLUB","LIGA DEPORTIVA DE GENERAL ARENALES"]
[{"$nulls":63},"LOS DIABLOS ROJOS SOCIAL Y DEPORTIVO","LIGA DEPORTIVA DE GENERAL ARENALES"]
[{"$nulls":63},"SINGLAR CLUB SOCIAL Y DEPORTIVO","LIGA DEPORTIVA DE GENERAL ARENALES"]
[{"$nulls":63},"SOCIAL Y DEPORTIVO 12 DE OCTUBRE","LIGA DEPORTIVA DE GENERAL ARENALES"]
[{"$nulls":63},"SOCIAL Y DEPORTIVO ASCENSION","LIGA DEPORTIVA DE GENERAL ARENALES"]
[{"$nulls":63},"SOCIAL Y DEPORTIVO BELGRANO","LIGA DEPORTIVA DE GENERAL ARENALES"]
[]
[{"$nulls":63},"***ROJAS***"]
[{"$nulls":63},"ATLETICO ARGENTINO","LIGA DEPORTIVA DE FÚTBOL (ROJAS)"]
[{"$nulls":63},"ATLETICO BOCA JUNIORS","LIGA DEPORTIVA DE FÚTBOL (ROJAS)"]
[{"$nulls":63},"ATLETICO EL HURACAN","LIGA DEPORTIVA DE FÚTBOL (ROJAS)"]
[{"$nulls":63},"ATLETICO JORGE NEWBERY","LIGA DEPORTIVA DE FÚTBOL (ROJAS)"]
[{"$nulls":63},"ATLETICO JUVENTUD","LIGA DEPORTIVA DE FÚTBOL (ROJAS)"]
[{"$nulls":63},"ATLETICO SAN JOSE","LIGA DEPORTIVA DE FÚTBOL (ROJAS)"]
[{"$nulls":63},"CARABELAS","LIGA DEPORTIVA DE FÚTBOL (ROJAS)"]
[{"$nulls":63},"DEPORTIVO UNIÓN","LIGA DEPORTIVA DE FÚTBOL (ROJAS)"]
[]
[{"$nulls":63},"***CARLOS CASARES***"]
[{"$nulls":63},"ATLETICO AGROPECUARIO ARGENTINO","LIGA CASARENSE DE FÚTBOL"]
[{"$nulls":63},"ATLETICO ARGENTINA 78","LIGA CASARENSE DE FÚTBOL"]
[{"$nulls":63},"ATLETICO BOCA CARLOS CASARES","LIGA CASARENSE DE FÚTBOL"]
[{"$nulls":63},"ATLETICO DE CARLOS CASARES","LIGA CASARENSE DE FÚTBOL"]
[{"$nulls":63},"ATLETICO DE MOCTEZUMA","LIGA CASARENSE DE FÚTBOL"]
[{"$nulls":63},"ATLETICO DEFENSORES DE CADRET","LIGA CASARENSE DE FÚTBOL"]
[{"$nulls":63},"ATLETICO SMITH","LIGA CASARENSE DE FÚTBOL"]
[{"$nulls":63},"DEPORTIVO CASARES","LIGA CASARENSE DE FÚTBOL"]
[{"$nulls":63},"SOCIAL Y DEPORTIVO BELLOCQ","LIGA CASARENSE DE FÚTBOL"]
[]
[{"$nulls":63},"***PEHUAJO***"]
[{"$nulls":63},"ATLETICO BOCA JUNIOR","LIGA PEHUAJENSE DE FÚTBOL"]
[{"$nulls":63},"ATLETICO CALAVERAS","LIGA PEHUAJENSE DE FÚTBOL"]
[{"$nulls":63},"ATLETICO DEFENSORES DEL ESTE","LIGA PEHUAJENSE DE FÚTBOL"]
[{"$nulls":63},"ATLETICO EMPLEADOS DE COMERCIO","LIGA PEHUAJENSE DE FÚTBOL"]
[{"$nulls":63},"ATLETICO ESTUDIANTES UNIDOS","LIGA PEHUAJENSE DE FÚTBOL"]
[{"$nulls":63},"ATLETICO GENERAL SAN MARTIN","LIGA PEHUAJENSE DE FÚTBOL"]
[{"$nulls":63},"ATLETICO INDEPENDIENTE","LIGA PEHUAJENSE DE FÚTBOL"]
[{"$nulls":63},"ATLETICO JUVENTUD UNIDA","LIGA PEHUAJENSE DE FÚTBOL"]
[{"$nulls":63},"ATLETICO K.D.T.","LIGA PEHUAJENSE DE FÚTBOL"]
[{"$nulls":63},"ATLETICO MADERENSE","LIGA PEHUAJENSE DE FÚTBOL"]
[{"$nulls":63},"ATLETICO MONES CAZON","LIGA PEHUAJENSE DE FÚTBOL"]
[{"$nulls":63},"ATLETICO PEHUAJÓ","LIGA PEHUAJENSE DE FÚTBOL"]
[{"$nulls":63},"ATLETICO URDAMPILLETA","LIGA PEHUAJENSE DE FÚTBOL"]
[{"$nulls":63},"BALOMPIE FUTBOL CLUB","LIGA PEHUAJENSE DE FÚTBOL"]
[{"$nulls":63},"BANCARIOS","LIGA PEHUAJENSE DE FÚTBOL"]
[{"$nulls":63},"BULL DOG","LIGA PEHUAJENSE DE FÚTBOL"]
[{"$nulls":63},"DEPORTIVO ARGENTINO","LIGA PEHUAJENSE DE FÚTBOL"]
[{"$nulls":63},"FUTBOL CLUB HENDERSON","LIGA PEHUAJENSE DE FÚTBOL"]
[{"$nulls":63},"SOCIAL Y DEPORTIVO INDEPENDIENTE","LIGA PEHUAJENSE DE FÚTBOL"]
[{"$nulls":63},"SOCIAL Y DEPORTIVO PROGRESO","LIGA PEHUAJENSE DE FÚTBOL"]
[{"$nulls":63},"SOCIAL Y DEPORTIVO UNION","LIGA PEHUAJENSE DE FÚTBOL"]
[{"$nulls":63},"SOCIAL Y DEPORTIVO UNZUÉ","LIGA PEHUAJENSE DE FÚTBOL"]
[{"$nulls":63},"HURACAN FÚTBOL CLUB","LIGA PEHUAJENSE DE FÚTBOL"]